bitfinex-derivatives/quotes_SOLF0:USTF0_20241218
["timestamp","ask_amount","ask_price","bid_price","bid_amount"]
[1734524518455,7.12177486,217.93,217.86,7.12177486]
[1734524518857,2.08,217.94,217.86,7.12177486]
[1734524519057,7.12177486,217.93,217.86,7.12177486]
[1734524519259,2.08,217.94,217.88,2.2953]
[1734524519553,7.12177486,217.93,217.86,7.12177486]
[1734524519756,9.41667486,217.93,217.89,2.2952]
[1734524519953,2.2949,217.93,217.89,2.2952]
[1734524520355,2.295,217.92,217.89,2.2952]
[1734524521257,2.2949,217.93,217.89,2.2952]
[1734524521457,2.2949,217.93,217.88,7.12177486]
[1734524521660,2.2949,217.93,217.9,2.2951]
[1734524521958,2.2949,217.93,217.88,7.12177486]
[1734524522652,2.295,217.92,217.89,2.2952]
[1734524523050,2.08,217.94,217.89,2.2952]
[1734524523258,2.2949,217.93,217.9,2.2952]
[1734524524060,9.41647486,217.95,217.91,2.295]
[1734524524259,9.18177486,217.95,217.84,2.36675]
[1734524524460,9.18177486,217.95,217.87,7.12177486]
[1734524524659,9.18177486,217.95,217.9,2.2951]
[1734524524660,2.2949,217.93,217.9,2.2951]
[1734524525159,2.2948,217.94,217.91,2.295]
[1734524525358,2.06,217.98,217.91,7.12177486]
[1734524525760,2.06,217.98,217.88,2.06]
[1734524525761,2.06,217.98,217.95,2.2946]
[1734524527259,2.06,217.98,217.93,7.12177486]
[1734524527563,9.18177486,218.0,217.93,7.12177486]
[1734524527766,7.12177486,218.0,217.93,7.12177486]
[1734524528066,7.12177486,218.0,217.97,2.2943]
[1734524530064,9.41587486,218.0,217.97,2.2943]
[1734524531163,7.12177486,217.98,217.88,2.06]
[1734524531358,7.12177486,217.98,217.9,7.12177486]
[1734524531359,2.06,217.97,217.9,7.12177486]
[1734524531760,4.3545,217.97,217.93,2.2948]
[1734524533163,2.06,217.97,217.94,2.2946]
[1734524533365,9.18177486,218.0,217.94,7.12177486]
[1734524533866,9.18177486,218.0,217.97,2.2944]
[1734524535056,9.18177486,218.0,217.98,2.2943]
[1734524535260,2.06,218.0,217.98,2.2943]
[1734524535457,2.06,218.0,217.94,7.12177486]
[1734524535862,2.06,218.0,217.97,2.2943]
[1734524536870,2.06,218.0,217.94,7.12177486]
[1734524537268,2.06,218.0,217.96,7.12177486]
[1734524537466,81.9875106,219.54,217.98,7.12177486]
[1734524537467,1.6077,218.12,217.98,7.12177486]
[1734524537770,9.18177486,218.11,218.04,7.12177486]
[1734524538271,7.12177486,218.09,217.98,2.06]
[1734524538464,7.12177486,218.09,218.01,7.12177486]
[1734524538664,2.2934,218.07,218.01,7.12177486]
[1734524539065,7.12177486,218.09,218.01,7.12177486]
[1734524539369,7.12177486,218.05,218.01,2.2939]
[1734524540268,9.41537486,218.05,218.01,2.2939]
[1734524541764,2.2939,218.03,217.98,2.2942]
[1734524541962,7.12177486,218.03,217.93,4.7248]
[1734524542165,7.12177486,218.03,217.96,7.12177486]
[1734524542569,7.12177486,218.01,217.93,4.7248]
[1734524542868,2.06,218.0,217.93,11.84657486]
[1734524543166,2.06,218.0,217.95,7.12177486]
[1734524544270,2.06,218.0,217.97,7.12177486]
[1734524544672,2.06,218.0,217.95,7.12177486]
[1734524545068,2.2943,217.98,217.94,9.41647486]
[1734524545469,7.12177486,217.99,217.94,2.2947]
[1734524545671,2.2945,217.97,217.93,2.2948]
[1734524545974,7.12177486,217.99,217.86,2.06]
[1734524546274,7.12177486,217.99,217.91,7.12177486]
[1734524546480,7.12177486,217.97,217.91,9.41677486]
[1734524546771,2.06,217.96,217.91,9.41677486]
[1734524546970,7.12177486,217.95,217.9,2.2951]
[1734524547179,7.12177486,217.95,217.89,7.12177486]
[1734524548075,2.2949,217.93,217.89,9.41697486]
[1734524549676,2.2949,217.93,217.89,2.2952]
[1734524549874,2.06,217.92,217.9,2.2951]
[1734524554275,4.355,217.92,217.88,9.41707486]
[1734524554682,2.2951,217.91,217.87,2.2954]
[1734524554976,2.06,217.92,217.86,7.37150486]
[1734524555977,7.12177486,217.89,217.86,0.24973]
[1734524556191,2.06,217.88,217.86,0.24973]
[1734524556579,2.2955,217.87,217.86,0.24973]
[1734524556784,9.41727486,217.87,217.86,0.24973]
[1734524559977,2.2955,217.87,217.86,0.24973]
[1734524560172,7.12177486,217.92,217.86,0.24973]
[1734524560391,1.4502,217.98,217.89,2.2953]
[1734524560392,2.06,217.91,217.89,2.2953]
[1734524561176,2.06,217.91,217.86,0.24973]
[1734524561381,4.3551,217.91,217.86,7.37150486]
[1734524561581,2.06,217.91,217.88,7.12177486]
[1734524561779,2.06,217.91,217.89,2.2952]
[1734524562076,4.3551,217.91,217.88,7.12177486]
[1734524562280,2.06,217.91,217.86,0.24973]
[1734524562485,2.06,217.91,217.86,2.54523]
[1734524562681,2.2952,217.9,217.86,0.24973]
[1734524562879,2.06,217.91,217.86,0.24973]
[1734524563179,2.2955,217.87,217.86,0.24973]
[1734524563380,4.3555,217.87,217.86,0.24973]
[1734524568780,2.2954,217.88,217.86,0.24973]
[1734524568981,4.3554,217.88,217.86,0.24973]
[1734524569181,5.75027,217.85,217.71,2.2972]
[1734524569385,2.2963,217.79,217.7,3.1021]
[1734524569584,2.06,217.78,217.7,3.1021]
[1734524569784,2.06,217.77,217.73,2.2969]
[1734524570185,2.06,217.77,217.71,5.60553162]
[1734524571587,2.06,217.77,217.73,2.2968]
[1734524573091,2.2967,217.76,217.72,2.297]
[1734524573381,2.06,217.77,217.71,5.60553162]
[1734524573983,2.06,217.77,217.65,59.72966316]
[1734524574287,13.18948108,217.77,217.65,59.72966316]
[1734524574587,13.18948108,217.77,217.7,5.45086751]
[1734524575186,2.297,217.73,217.7,5.45086751]
[1734524575387,2.08,217.72,217.68,2.2975]
[1734524576792,4.3771,217.72,217.68,2.2975]
[1734524577476,2.08,217.72,217.65,48.60018208]
[1734524578389,2.08,217.72,217.6,13.20948108]
[1734524578686,2.08,217.72,217.68,5.63825977]
[1734524579190,2.08,217.72,217.6,13.20948108]
[1734524579487,11.12948108,217.7,217.59,3.0856]
[1734524580490,2.2979,217.65,217.61,2.2982]
[1734524580689,2.08,217.65,217.63,5.52280382]
[1734524580981,11.12948108,217.7,217.63,5.52280382]
[1734524581186,2.08,217.69,217.63,5.52280382]
[1734524581586,4.3775,217.68,217.63,7.82070382]
[1734524583297,2.1,217.68,217.65,2.2978]
[1734524585088,2.1,217.7,217.63,5.52280382]
[1734524585288,2.1,217.74,217.65,11.12948108]
[1734524585689,2.1,217.74,217.71,2.2971]
[1734524586294,2.1,217.74,217.69,2.2973]
[1734524586794,2.1,217.74,217.7,2.2972]
[1734524587295,4.3969,217.74,217.7,2.2972]
[1734524587492,2.1,217.74,217.68,2.2975]
[1734524588496,2.1,217.74,217.65,11.12948108]
[1734524588689,2.1,217.74,217.69,2.2974]
[1734524589092,4.3969,217.74,217.69,2.2974]
[1734524589296,4.3969,217.74,217.65,11.12948108]
[1734524589516,4.3969,217.74,217.7,2.2972]
[1734524590193,2.1,217.74,217.71,2.2971]
[1734524590890,2.2967,217.76,217.71,2.2971]
[1734524591101,2.1,217.74,217.71,2.2971]
[1734524592695,2.1,217.74,217.65,11.12948108]
[1734524592903,4.3969,217.74,217.69,2.2973]
[1734524593501,2.1,217.74,217.71,2.2971]
[1734524593706,2.2968,217.75,217.71,2.2971]
[1734524593903,2.1,217.74,217.71,2.2971]
[1734524594503,2.1,217.74,217.65,11.12948108]
[1734524595099,13.42608108,217.77,217.72,2.297]
[1734524595305,2.1,217.76,217.65,11.12948108]
[1734524595606,2.1,217.76,217.72,2.297]
[1734524595907,2.1,217.77,217.68,11.12948108]
[1734524596204,2.1,217.77,217.76,2.2966]
[1734524596601,11.12948108,217.86,217.71,11.12948108]
[1734524596808,2.1,217.85,217.83,2.2959]
[1734524597007,2.1,217.84,217.83,2.2959]
[1734524597207,11.12948108,217.89,217.83,2.2959]
[1734524597208,2.1,217.86,217.83,2.2959]
[1734524597409,2.1,217.86,217.85,2.2957]
[1734524597910,2.1,217.86,217.77,11.12948108]
[1734524598112,2.1,217.86,217.83,2.2958]
[1734524598604,2.1,217.86,217.74,2.1]
[1734524599004,2.2957,217.85,217.74,2.1]
[1734524599209,2.2957,217.85,217.79,2.2962]
[1734524599713,2.2958,217.84,217.79,2.2963]
[1734524600011,2.2958,217.84,217.74,7.4837699]
[1734524600406,2.1,217.83,217.74,7.4837699]
[1734524602509,2.1,217.83,217.79,2.2963]
[1734524605116,2.1,217.83,217.8,2.2962]
[1734524608813,2.1,217.83,217.82,2.296]
[1734524609016,2.1,217.85,217.78,7.1288086]
[1734524609242,4.3957,217.85,217.81,2.296]
[1734524610215,4.3957,217.85,217.78,7.1288086]
[1734524610510,2.1,217.85,217.82,2.296]
[1734524611815,2.1,217.85,217.83,2.2958]
[1734524612314,2.1,217.85,217.78,7.1288086]
[1734524612516,2.1,217.85,217.84,2.2958]
[1734524612819,2.1,217.87,217.8,7.1288086]
[1734524613017,2.1,217.87,217.85,2.2956]
[1734524613314,7.1288086,217.86,217.75,6.6935]
[1734524613517,7.1288086,217.86,217.78,7.1288086]
[1734524614112,7.1288086,217.86,217.84,2.2957]
[1734524614714,2.08,217.86,217.85,2.2957]
[1734524617541,5.57350798,217.92,217.75,6.6935]
[1734524617542,1.469,217.95,217.84,7.1288086]
[1734524617715,7.1288086,217.91,217.84,7.1288086]
[1734524618313,9.4239086,217.91,217.84,7.1288086]
[1734524618518,7.1288086,217.91,217.84,7.1288086]
[1734524618924,7.1288086,217.91,217.8,4.5816]
[1734524619117,2.08,217.9,217.84,7.1288086]
[1734524619323,2.08,217.9,217.89,2.2953]
[1734524619922,2.08,217.92,217.86,7.1288086]
[1734524620222,2.08,217.93,217.91,2.295]
[1734524621219,9.2088086,217.93,217.91,2.295]
[1734524624732,11.5037086,217.93,217.89,2.2952]
[1734524625234,11.5037086,217.93,217.83,2.08]
[1734524625235,9.4234086,217.96,217.92,2.2948]
[1734524625527,2.06,217.97,217.92,7.1288086]
[1734524626634,2.06,217.97,217.94,2.2947]
[1734524626945,7.1288086,217.96,217.89,7.1288086]
[1734524628532,7.1288086,217.94,217.88,4.4099]
[1734524628739,7.1288086,217.94,217.87,5.52710932]
[1734524628740,2.06,217.93,217.87,5.52710932]
[1734524629425,4.3549,217.93,217.89,2.2953]
[1734524631335,2.295,217.92,217.89,2.2953]
[1734524631928,2.295,217.92,217.87,7.82250932]
[1734524632129,7.1288086,217.9,217.84,7.1288086]
[1734524632641,7.1288086,217.88,217.81,1.5295]
[1734524632935,7.1288086,217.86,217.75,6.6537]
[1734524633239,2.2959,217.84,217.79,2.2962]
[1734524633635,2.2959,217.84,217.8,2.2962]
[1734524634739,2.2959,217.83,217.78,9.4251086]
[1734524634939,2.2959,217.83,217.78,7.1288086]
[1734524635539,2.2959,217.83,217.78,12.68292305]
[1734524636638,2.2959,217.83,217.79,2.2963]
[1734524637143,2.296,217.82,217.78,12.68292305]
[1734524637440,2.296,217.82,217.78,5.55411445]
[1734524638436,2.296,217.82,217.78,7.85051445]
[1734524638638,2.296,217.82,217.78,2.2964]
[1734524638838,2.06,217.81,217.78,2.2964]
[1734524639637,2.06,217.81,217.77,7.1288086]
[1734524639938,2.06,217.81,217.77,9.4253086]
[1734524641238,4.3562,217.81,217.76,2.2966]
[1734524642436,7.1288086,217.8,217.7,0.3652]
[1734524642640,7.1288086,217.78,217.71,7.1288086]
[1734524642838,2.06,217.77,217.71,7.1288086]
[1734524643043,2.06,217.77,217.7,0.3652]
[1734524643240,2.06,217.77,217.72,2.297]
[1734524644539,2.2967,217.76,217.72,2.297]
[1734524645644,2.06,217.77,217.71,7.1288086]
[1734524645840,2.297,217.73,217.7,0.3652]
[1734524646058,4.357,217.73,217.7,0.3652]
[1734524646749,2.2972,217.71,217.7,0.3652]
[1734524648944,2.2979,217.65,217.6,4.6496]
[1734524649251,11.4867086,217.65,217.6,4.6496]
[1734524650650,11.4867086,217.65,217.61,2.2982]
[1734524651150,4.3579,217.65,217.61,2.2982]
[1734524654657,2.06,217.65,217.64,2.2979]
[1734524654857,9.4264086,217.68,217.64,2.2979]
[1734524655156,9.4264086,217.68,217.61,7.1288086]
[1734524655157,2.06,217.66,217.61,7.1288086]
[1734524655358,7.1288086,217.64,217.31,153.63416922]
[1734524655548,7.1288086,217.64,217.51,2.06]
[1734524655755,7.1288086,217.64,217.56,59.80449267]
[1734524656055,2.298,217.63,217.58,2.2984]
[1734524656255,2.06,217.62,217.58,2.2984]
[1734524656551,9.1888086,217.62,217.58,2.2984]
[1734524658652,7.1288086,217.6,217.48,4.5923]
[1734524658857,7.1288086,217.57,217.5,7.1288086]
[1734524659059,2.06,217.56,217.5,7.1288086]
[1734524659264,2.06,217.56,217.51,5.55145803]
[1734524659764,2.06,217.56,217.5,7.1288086]
[1734524660267,2.06,217.56,217.52,2.2991]
[1734524660560,7.1288086,217.55,217.52,2.2991]
[1734524660860,2.06,217.56,217.39,4.6009]
[1734524660861,7.1288086,217.53,217.46,5.57536179]
[1734524661065,2.06,217.52,217.4,4.4552]
[1734524661270,2.06,217.52,217.45,7.1288086]
[1734524662066,2.06,217.52,217.48,2.2996]
[1734524662267,2.06,217.52,217.45,7.1288086]
[1734524662468,2.06,217.53,217.51,2.2992]
[1734524662660,2.06,217.53,217.49,7.1288086]
[1734524663067,2.06,217.53,217.52,2.2992]
[1734524664678,7.1288086,217.56,217.52,2.2992]
[1734524664870,2.08,217.55,217.52,2.2992]
[1734524665270,2.08,217.54,217.53,2.299]
[1734524665967,5.51133427,217.61,217.49,7.1288086]
[1734524666168,5.51133427,217.61,217.55,2.2988]
[1734524666169,7.1288086,217.59,217.55,2.2988]
[1734524667174,7.1288086,217.57,217.55,2.2988]
[1734524667577,7.1288086,217.57,217.53,2.299]
[1734524667778,7.1288086,217.57,217.49,7.1288086]
[1734524668083,2.08,217.56,217.49,7.1288086]
[1734524668776,2.08,217.56,217.51,2.2993]
[1734524668980,2.08,217.56,217.49,7.1288086]
[1734524670276,2.08,217.56,217.54,2.2989]
[1734524671376,2.08,217.56,217.53,2.299]
[1734524671576,2.08,217.56,217.49,7.1288086]
[1734524672677,2.08,217.56,217.52,2.2991]
[1734524673183,7.1288086,217.55,217.52,2.2991]
[1734524674584,7.1288086,217.55,217.49,7.1288086]
[1734524676385,1.4974,217.65,217.51,7.1288086]
[1734524676586,7.1288086,217.58,217.51,7.1288086]
[1734524676890,2.08,217.57,217.51,7.1288086]
[1734524677582,2.08,217.57,217.54,2.2989]
[1734524678682,7.1288086,217.56,217.54,2.2989]
[1734524678882,7.1288086,217.56,217.55,2.2988]
[1734524679577,2.08,217.57,217.55,2.2988]
[1734524679787,7.1288086,217.58,217.51,7.1288086]
[1734524679981,2.08,217.59,217.53,7.1288086]
[1734524680187,9.2088086,217.61,217.53,7.1288086]
[1734524680881,7.1288086,217.61,217.53,7.1288086]
[1734524681080,9.2088086,217.61,217.53,7.1288086]
[1734524681286,7.1288086,217.59,217.51,7.1288086]
[1734524681786,7.1288086,217.59,217.56,2.2986]
[1734524681987,7.1288086,217.6,217.53,7.1288086]
[1734524682982,7.1288086,217.6,217.56,2.2987]
[1734524683980,2.2985,217.58,217.54,2.2989]
[1734524684183,9.4273086,217.58,217.54,2.2989]
[1734524684586,2.08,217.57,217.54,2.2989]
[1734524684784,4.3787,217.57,217.52,2.2991]
[1734524685288,4.3787,217.57,217.53,2.299]
[1734524685582,7.1288086,217.58,217.49,7.1288086]
[1734524685787,2.08,217.57,217.51,7.1288086]
[1734524685980,2.08,217.57,217.55,2.2988]
[1734524688385,2.2984,217.59,217.55,2.2988]
[1734524688589,2.08,217.58,217.55,2.2988]
[1734524689292,4.3785,217.58,217.55,2.2988]
[1734524692694,7.1288086,217.57,217.48,4.4835]
[1734524692991,2.08,217.58,217.48,4.4835]
[1734524692992,7.1288086,217.53,217.48,2.9688]
[1734524693192,9.2088086,217.53,217.49,2.2994]
[1734524693386,2.08,217.53,217.48,2.9688]
[1734524694500,2.08,217.53,217.48,15.48058342]
[1734524695094,2.08,217.56,217.5,7.1288086]
[1734524696095,2.08,217.56,217.53,2.299]
[1734524696495,9.2088086,217.56,217.48,15.48058342]
[1734524696901,11.5076086,217.56,217.48,15.48058342]
[1734524697701,11.5076086,217.56,217.51,2.2992]
[1734524698493,7.1288086,217.52,217.48,5.38297482]
[1734524698694,9.2088086,217.52,217.48,5.38297482]
[1734524698899,9.2088086,217.52,217.48,7.68257482]
[1734524700100,2.08,217.52,217.48,7.68257482]
[1734524700302,4.3792,217.52,217.48,2.2996]
[1734524700502,2.08,217.52,217.48,2.2996]
[1734524701601,2.08,217.52,217.49,2.2995]
[1734524702004,2.08,217.52,217.47,7.1288086]
[1734524703401,2.08,217.52,217.49,2.2994]
[1734524703602,9.2088086,217.52,217.46,6.1609617]
[1734524704003,7.1288086,217.5,217.47,2.2996]
[1734524704197,9.4282086,217.5,217.46,6.1609617]
[1734524704597,7.1288086,217.5,217.46,2.88327]
[1734524705402,7.1288086,217.5,217.46,0.58347]
[1734524705708,2.2995,217.49,217.46,0.58347]
[1734524705910,2.06,217.48,217.46,0.58347]
[1734524706601,2.2997,217.47,217.46,0.58347]
[1734524707403,2.3002,217.43,217.37,7.1288086]
[1734524707597,2.3002,217.43,217.34,36.36196915]
[1734524707598,9.1888086,217.43,217.34,36.36196915]
[1734524707807,7.1288086,217.39,217.34,7.73083601]
[1734524708003,2.06,217.38,217.34,7.73083601]
[1734524708203,2.06,217.38,217.28,4.4595]
[1734524708204,7.1288086,217.37,217.31,2.3013]
[1734524708701,2.06,217.38,217.31,2.3014]
[1734524708905,2.06,217.38,217.31,12.59332938]
[1734524709602,7.1288086,217.37,217.28,4.4595]
[1734524709802,2.06,217.38,217.29,5.48772685]
[1734524710002,2.3012,217.34,217.29,5.48772685]
[1734524710208,7.1288086,217.36,217.28,2.9681]
[1734524710410,1.29334,217.35,217.28,10.0969086]
[1734524710806,1.29334,217.35,217.28,12.3986086]
[1734524711107,7.1288086,217.34,217.28,5.2698]
[1734524711309,7.1288086,217.34,217.28,2.9681]
[1734524711916,7.1288086,217.34,217.28,5.2698]
[1734524712306,7.1288086,217.34,217.26,7.1288086]
[1734524712609,2.3013,217.32,217.27,2.3018]
[1734524712808,2.06,217.31,217.27,2.3018]
[1734524713011,2.06,217.31,217.26,7.1288086]
[1734524713626,2.06,217.31,217.25,5.46352342]
[1734524713809,4.3615,217.31,217.25,12.59233202]
[1734524714701,2.06,217.31,217.25,12.59233202]
[1734524714906,2.06,217.31,217.26,2.3019]
[1734524715714,2.06,217.31,217.27,7.1288086]
[1734524716012,1.5755,217.41,217.27,7.1288086]
[1734524716207,7.1288086,217.36,217.29,7.1288086]
[1734524716408,7.1288086,217.36,217.25,7.52352342]
[1734524716409,1.506,217.46,217.31,7.1288086]
[1734524716720,9.4293086,217.4,217.33,7.1288086]
[1734524716910,2.06,217.39,217.33,7.1288086]
[1734524717314,7.1288086,217.4,217.37,2.3007]
[1734524717613,2.06,217.42,217.37,7.1288086]
[1734524717819,7.1288086,217.44,217.37,7.1288086]
[1734524718011,2.06,217.43,217.39,2.3005]
[1734524718413,2.06,217.43,217.36,2.3008]
[1734524718414,9.4290086,217.42,217.36,2.3008]
[1734524718617,9.4290086,217.42,217.31,3.0645]
[1734524718817,9.4290086,217.42,217.35,7.1288086]
[1734524719210,7.1288086,217.38,217.31,3.0645]
[1734524719415,9.1888086,217.38,217.31,10.1933086]
[1734524720317,7.1288086,217.38,217.31,10.1933086]
[1734524720522,2.06,217.37,217.34,2.301]
[1734524722122,2.06,217.37,217.33,2.3012]
[1734524724921,9.1888086,217.37,217.33,2.3012]
[1734524725324,2.06,217.37,217.33,2.3012]
[1734524725525,2.06,217.37,217.34,2.301]
[1734524725722,2.06,217.4,217.34,7.1288086]
[1734524725917,2.06,217.4,217.3,3.5942]
[1734524726126,2.06,217.4,217.32,7.1288086]
[1734524726421,7.1288086,217.39,217.3,3.5942]
[1734524726625,7.1288086,217.39,217.31,7.1288086]
[1734524726827,9.4294086,217.39,217.34,2.301]
[1734524727227,7.1288086,217.39,217.31,7.1288086]
[1734524727420,7.1288086,217.39,217.35,2.3009]
[1734524730424,7.1288086,217.39,217.31,7.1288086]
[1734524730627,7.1288086,217.39,217.36,2.3008]
[1734524731131,2.06,217.4,217.36,2.3008]
[1734524731429,2.06,217.39,217.36,2.3008]
[1734524732429,9.1888086,217.39,217.3,8.6630086]
[1734524732628,7.1288086,217.37,217.3,8.6630086]
[1734524732832,9.4296086,217.37,217.33,2.3011]
[1734524733222,2.3009,217.36,217.3,8.6630086]
[1734524733528,2.06,217.35,217.31,2.3014]
[1734524733824,4.361,217.35,217.29,7.1288086]
[1734524734025,4.361,217.35,217.3,2.3014]
[1734524734231,9.1888086,217.35,217.27,10.2635086]
[1734524734536,2.3013,217.32,217.28,2.3017]
[1734524734732,9.1888086,217.35,217.28,2.3017]
[1734524735931,7.1288086,217.33,217.28,2.3017]
[1734524736232,9.4301086,217.33,217.28,2.3017]
[1734524736432,7.1288086,217.33,217.28,2.3017]
[1734524737235,7.1288086,217.33,217.27,7.1288086]
[1734524737427,7.1288086,217.33,217.27,9.4306086]
[1734524737932,7.1288086,217.33,217.27,2.3018]
[1734524738433,2.3014,217.31,217.27,2.3018]
[1734524738628,2.08,217.3,217.27,2.3018]
[1734524739133,2.08,217.3,217.23,1.5823]
[1734524739336,2.08,217.3,217.24,7.1288086]
[1734524739635,2.08,217.3,217.19,2.08]
[1734524739835,4.3815,217.3,217.25,2.3019]
[1734524740033,4.3815,217.3,217.24,7.1288086]
[1734524740236,2.08,217.3,217.24,7.1288086]
[1734524741138,2.08,217.3,217.24,9.4309086]
[1734524741736,9.4307086,217.27,217.22,2.3023]
[1734524741933,2.08,217.26,217.22,2.3023]
[1734524742237,2.302,217.25,217.21,2.3024]
[1734524742638,2.08,217.26,217.15,7.1288086]
[1734524742862,7.1288086,217.25,217.17,7.1288086]
[1734524743239,2.3022,217.23,217.18,2.3028]
[1734524743443,2.08,217.22,217.18,2.3028]
[1734524743641,2.08,217.22,217.15,7.1288086]
[1734524743838,2.08,217.22,217.17,2.3029]
[1734524744137,2.08,217.22,217.11,4.6507]
[1734524744138,2.08,217.22,217.14,5.56019043]
[1734524744345,2.3027,217.2,217.14,2.3031]
[1734524744841,2.3027,217.2,217.15,7.1288086]
[1734524745243,9.4313086,217.21,217.16,2.303]
[1734524745540,2.08,217.2,217.15,7.1288086]
[1734524745741,2.08,217.2,217.13,5.4638286]
[1734524745935,2.08,217.2,217.14,7.1288086]
[1734524746337,4.3826,217.2,217.15,2.303]
[1734524746941,2.08,217.2,217.15,9.4319086]
[1734524747838,2.3017,217.28,217.15,9.4319086]
[1734524748070,7.1288086,217.22,217.16,2.303]
[1734524748241,2.08,217.21,217.15,7.1288086]
[1734524748744,2.08,217.21,217.13,5.4638286]
[1734524748943,2.3027,217.19,217.14,7.1288086]
[1734524749344,2.08,217.21,217.12,7.1288086]
[1734524749345,7.1288086,217.2,217.12,7.1288086]
[1734524749544,7.1288086,217.2,217.1,5.61003974]
[1734524749943,2.303,217.17,217.12,7.1288086]
[1734524750154,2.08,217.16,217.12,7.1288086]
[1734524750345,2.08,217.17,217.12,7.1288086]
[1734524751345,2.08,217.17,217.13,2.3033]
[1734524752546,2.3029,217.18,217.13,2.3033]
[1734524752746,2.08,217.17,217.13,2.3033]
[1734524753539,4.3829,217.17,217.13,2.3033]
[1734524753948,2.08,217.17,217.1,5.61003974]
[1734524754148,2.08,217.17,217.11,9.4322086]
[1734524754149,2.303,217.16,217.11,9.4322086]
[1734524755052,2.3018,217.27,217.22,2.3023]
[1734524755350,7.1288086,217.27,217.2,7.1288086]
[1734524755751,9.2088086,217.27,217.17,1.503]
[1734524755946,7.1288086,217.25,217.18,7.1288086]
[1734524756845,7.1288086,217.23,217.17,1.503]
[1734524757052,7.1288086,217.25,217.17,1.503]
[1734524757548,7.1288086,217.23,217.18,2.3027]
[1734524757848,7.1288086,217.25,217.17,1.503]
[1734524758052,7.1288086,217.23,217.17,1.503]
[1734524758345,9.2088086,217.23,217.16,7.1288086]
[1734524759348,2.3025,217.21,217.16,9.4317086]
[1734524759545,9.2088086,217.23,217.16,7.1288086]
[1734524760350,2.3024,217.22,217.17,2.3028]
[1734524760552,9.2088086,217.23,217.16,7.1288086]
[1734524760749,9.2088086,217.23,217.11,1.5115]
[1734524760750,13.78,217.32,217.18,7.1288086]
[1734524760953,5.51763232,217.35,217.18,7.1288086]
[1734524760954,7.1288086,217.27,217.18,7.1288086]
[1734524761353,9.2088086,217.27,217.2,7.1288086]
[1734524761561,2.3013,217.33,217.28,2.3017]
[1734524761754,7.1288086,217.3,217.22,9.2088086]
[1734524761956,7.1288086,217.3,217.22,2.08]
[1734524762151,7.1288086,217.3,217.26,2.3019]
[1734524762956,7.1288086,217.3,217.27,2.3018]
[1734524763374,7.1288086,217.3,217.22,4.5544]
[1734524763556,7.1288086,217.3,217.27,2.3017]
[1734524764054,2.3012,217.34,217.22,11.6832086]
[1734524764361,7.1288086,217.31,217.28,2.3016]
[1734524764954,7.1288086,217.31,217.27,2.3018]
[1734524765158,7.1288086,217.29,217.23,2.12]
[1734524765455,7.1288086,217.29,217.27,2.3018]
[1734524767258,2.12,217.33,217.23,9.2488086]
[1734524767451,9.2488086,217.32,217.25,7.1288086]
[1734524768058,2.12,217.35,217.24,5.57460004]
[1734524768257,7.1288086,217.34,217.27,7.1288086]
[1734524768457,7.1288086,217.36,217.27,7.1288086]
[1734524769159,2.12,217.37,217.27,7.1288086]
[1734524769356,7.1288086,217.33,217.3,2.3015]
[1734524770461,7.1288086,217.33,217.27,7.1288086]
[1734524771061,7.1288086,217.33,217.31,2.3014]
[1734524771764,7.1288086,217.35,217.31,2.3014]
[1734524772065,7.1288086,217.33,217.24,5.57460004]
[1734524772262,7.1288086,217.3,217.24,5.57460004]
[1734524772564,9.2488086,217.32,217.24,5.57460004]
[1734524772764,9.2488086,217.32,217.25,7.1288086]
[1734524773456,11.5501086,217.32,217.27,2.3018]
[1734524775164,2.12,217.32,217.27,7.1288086]
[1734524775563,2.12,217.32,217.28,2.3017]